Cogmind - Beta 12 @@@ ROGUE MODE // 2023.12.29 @ 18:19:54 Player: puppuppit Result: Destroyed by G-34 Mercenary with Small Laser Performance ------------- Evolutions (1) 500 Regions Visited (3) 600 Robots Destroyed (109) 545 Value Destroyed (2005) 2005 Prototype IDs (10) 200 Alien Tech Used (0) 0 Bonus (197) 197 TOTAL SCORE: 4047 Bonus ------- High Alert Combat Kills 239 Follower Combat Kills 91 Friendly Fire -133 Cogmind --------- Core Integrity 0/400 Matter 275/300 Energy 100/100 System Corruption 0% Temperature Cool (69) Movement Flying (31) Location -9/Materials Parts ------- > --- POWER (1) -------- Backup Power III > --- PROPULSION (4) --- Improved Flight Unit Improved Flight Unit Improved Flight Unit Improved Flight Unit > --- UTILITY (2) ------ Machine Analyzer Hacking Suite > --- WEAPON (2) ------- Assault Cannon Katana > --- INVENTORY (5) ---- Light Nuclear Core Improved Flight Unit Improved Heat Sink Peak State ------------ > --- POWER ------------ Backup Power III > --- PROPULSION ------- Improved Flight Unit Improved Flight Unit Improved Flight Unit Improved Flight Unit > --- UTILITY ---------- Machine Analyzer Hacking Suite > --- WEAPON ----------- Assault Cannon Katana > --- INVENTORY -------- Light Nuclear Core Improved Heat Sink [Rating: 27] Favorites ----------- Power Light Ion Engine Engine Light Ion Engine Power Core Light Nuclear Core Propulsion Improved Flight Unit Leg Aluminum Leg Wheel Wheel Hover Unit Backup Propulsion I Flight Unit Improved Flight Unit Utility Small Storage Unit Device Cooling System Storage Small Storage Unit Processor Machine Analyzer Hackware Hacking Suite Protection Backup Plating I Weapon Assault Cannon Energy Gun Improved EM Shotgun Ballistic Gun Light Assault Rifle Ballistic Cannon Assault Cannon Launcher Mini Grenade Launcher Slashing Weapon Katana Build | -11 -10 -10 -9 ------- Run | Jun Mat Min Mat Slots Evolved 2 | . . . 2 Power . | . . . . Propulsion 2 | . . . 2 Utility . | . . . . Weapon . | . . . . Parts Attached 71 | 8 19 3 41 Power 10 | 1 1 1 7 Engine 5 | 1 1 1 2 Core 5 | . . . 5 Reactor . | . . . . Propulsion 19 | 2 3 2 12 Treads . | . . . . Leg 2 | . 1 . 1 Wheel 2 | 2 . . . Hover 6 | . . 2 4 Flight 9 | . 2 . 7 Utility 15 | 2 3 . 10 Device 4 | 1 . . 3 Storage 4 | 1 2 . 1 Processor 4 | . 1 . 3 Hackware 3 | . . . 3 Protection . | . . . . Artifact . | . . . . Weapon 27 | 3 12 . 12 Energy Gun 3 | . 3 . . Energy Cannon . | . . . . Ballistic Gun 12 | 3 7 . 2 Ballistic Cannon 6 | . . . 6 Launcher 5 | . 2 . 3 Special Weapon . | . . . . Impact Weapon . | . . . . Slashing Weapon 1 | . . . 1 Piercing Weapon . | . . . . Special Melee Weapon . | . . . . Unidentified Prototypes 4 | . 2 . 2 Parts Lost 21 | . 3 5 13 Power 2 | . . 1 1 Propulsion 11 | . 3 2 6 Utility 4 | . . 1 3 Weapon 4 | . . 1 3 Highest Loss Streak 4 | . 2 2 4 To Critical Strikes . | . . . . Average Slot Usage (%) 81 | . 91 67 77 Engine 5 | . 11 1 1 Core 2 | . . . 4 Leg 1 | . 1 . . Hover 16 | . 16 15 17 Flight 9 | . 4 5 14 Device 1 | . 1 . 2 Storage 12 | . 14 14 9 Processor 6 | . 8 11 3 Hackware 3 | . . . 6 Protection 1 | . 4 . . Ballistic Gun 9 | . 23 . . Ballistic Cannon 6 | . . . 13 Launcher 4 | . 3 18 2 Naked Turns . | . . . . Heaviest Build 22 | 13 18 10 22 Greatest Support 26 | 20 20 12 26 Greatest Overweight (x) 4 | 1 2 . 4 Average Overweight (x) . | . . . . Largest Inventory Capacity 10 | 8 10 8 8 Average Capacity 7 | 7 8 8 7 Most Carried 8 | 2 8 8 8 Average Carried 7 | 1 7 7 7 Final Capacity 8 | 8 8 8 5 Final Carried 8 | 2 8 8 3 Class Distribution -------------------- 98% | Mutant Dominant Class ---------------- Mutant | -10/Materials Mutant | -10/Mines Mutant | -9/Materials Resources | -11 -10 -10 -9 ----------- Run | Jun Mat Min Mat Matter Collected 3075 | 136 942 81 1916 Remotely . | . . . . Salvage Created 2962 | 24 1346 39 1553 Parts 193 | 5 94 5 89 Haulers Intercepted 6 | . 2 . 4 Recyclers Shooed 14 | . 11 . 3 Parts Field Recycled . | . . . . Retrieved Matter . | . . . . Parts Self-Destructed . | . . . . Prevented . | . . . . Kills | -11 -10 -10 -9 ------- Run | Jun Mat Min Mat Combat Hostiles Destroyed 42 | . 11 4 27 Melee 1 | . . . 1 Guns 10 | . 10 . . Cannons 23 | . . . 23 AOE 8 | . 1 4 3 Classes Destroyed 13 | 1 9 . 3 Worker 19 | . 11 . 8 Builder 14 | . 8 . 6 Tunneler 3 | 1 . 1 1 Hauler 6 | . 2 . 4 Recycler 11 | . 5 . 6 Mechanic 1 | . 1 . . Operator 4 | . 2 . 2 Watcher 8 | . 3 . 5 Swarmer 6 | . 6 . . Grunt 29 | . 5 4 20 Brawler 1 | . . . 1 Protector 1 | . . . 1 Sentry 5 | . . . 5 Thug 1 | . . . 1 Best Kill Streak 9 | 1 7 2 9 Combat Bots Only 4 | . 3 2 4 Max Kills in Single Turn 2 | 1 1 1 2 Gunslinging . | . . . . Exploded 2 | . 1 1 2 Melee 1 | . . . 1 Uniques/NPCs Destroyed . | . . . . Combat | -11 -10 -10 -9 -------- Run | Jun Mat Min Mat Damage Taken 2268 | 2 305 326 1635 Core 585 | . 95 87 403 Absorbed by Shields . | . . . . Regen/Repaired (Parts) 114 | . . . 114 Core Remaining (%) 63 | 100 . 27 . Volleys Fired 339 | 2 136 11 190 Largest 2 | 2 2 2 2 Hottest 88 | 40 60 60 88 Shots Fired 556 | 4 272 19 261 Gun 253 | 4 248 . 1 Cannon 250 | . . . 250 Launcher 53 | . 24 19 10 Special . | . . . . Kinetic 503 | 4 248 . 251 Thermal . | . . . . Explosive 53 | . 24 19 10 Electromagnetic . | . . . . Robot Hit Streak 14 | 1 14 5 8 Robot Miss Streak 5 | 1 5 2 5 Penetration Max . | . . . . Secondary Targets 2 | . 2 . . Max Gunslinging Chain 1 | . 1 . . Shots Hit Robots 323 | 2 153 6 162 Core Hits 155 | 2 79 9 65 Critical Kills . | . . . . Critical Parts Destroyed 1 | . 1 . . Critical Strikes 17 | . 1 . 16 Destroy 1 | . 1 . . Blast 16 | . . . 16 Melee Attacks 5 | . . . 5 Impact . | . . . . Slashing 5 | . . . 5 Piercing . | . . . . Sneak Attacks 2 | . . . 2 Combat Hostiles . | . . . . Follow-up Attacks . | . . . . Damage Inflicted 7065 | 41 1883 587 4554 Guns 1536 | 36 1483 . 17 Cannons 3908 | . . . 3908 Explosions 1425 | . 400 587 438 Melee 191 | . . . 191 Ramming 5 | 5 . . . Kinetic 5444 | 36 1483 . 3925 Thermal 71 | . . 71 . Explosive 1354 | . 400 516 438 Electromagnetic . | . . . . Impact . | . . . . Slashing 191 | . . . 191 Piercing . | . . . . Highest Corruption 7 | . . 7 . Average Corruption 7 | . . 7 . Corruption Purged . | . . . . Corruption Blocked . | . . . . Effects 2 | . . 2 . Energy Discharges 1 | . . 1 . Data Loss (minor) 1 | . . 1 . Overload Shots . | . . . . Overflow Damage 214 | . 10 17 187 Projectiles 107 | . . . 107 Explosions 27 | . 10 17 . Melee 80 | . . . 80 Knockbacks 39 | . . . 39 Impact . | . . . . Kinetic 36 | . . . 36 Secondary 3 | . . . 3 Self-Inflicted Damage 79 | 2 19 58 . Shots 3 | . 1 2 . Rammed 1 | 1 . . . Targets Rammed 1 | 1 . . . Kicked . | . . . . Crushed . | . . . . Highest Temperature 468 | . 17 13 468 Average Temperature 92 | . 3 6 140 Received Heat Transfer 999 | . 108 75 816 Effects 14 | . . . 14 Shutdowns 6 | . . . 6 Energy Bleed 4 | . . . 4 Interference 1 | . . . 1 Matter Decay 1 | . . . 1 Damage (minor) 1 | . . . 1 Damage (major) 1 | . . . 1 Siege Activations . | . . . . Robots Corrupted . | . . . . Combat Hostiles . | . . . . Parts Fried . | . . . . Impact Corruptions . | . . . . Robots Melted . | . . . . Combat Hostiles . | . . . . Parts Melted . | . . . . Heat Transferred 100 | . . 100 . Parts Sabotaged . | . . . . Parts Stolen . | . . . . Parts Stripped . | . . . . Power Chain Reactions . | . . . . Missiles Intercepted . | . . . . Alert | -11 -10 -10 -9 ------- Run | Jun Mat Min Mat Peak Influence 865 | 5 411 388 865 Initial 153 | . 3 153 65 Average 284 | 1 107 286 446 Maximum Alert Level 3 | . 2 1 3 Low Security (%) 44 | 100 90 25 7 Level 1 30 | . 7 74 38 Level 2 21 | . 1 . 45 Level 3 4 | . . . 8 Level 4 . | . . . . Level 5 . | . . . . High Security . | . . . . Max Security . | . . . . Squads Dispatched 7 | . 3 . 4 Investigation 2 | . 1 . 1 Extermination . | . . . . Reinforcement 3 | . 2 . 1 Assault 2 | . . . 2 Garrison . | . . . . Intercept . | . . . . Searches Triggered . | . . . . Construction Impeded 1 | . . . 1 Haulers Reinforced . | . . . . Active Scanning Responses . | . . . . Cargo Convoy Interrupts . | . . . . Stealth | -11 -10 -10 -9 --------- Run | Jun Mat Min Mat Distress Signals 2 | . . . 2 Communications Jammed . | . . . . Distress Signals . | . . . . Times Spotted 76 | . 23 4 49 Peak Tracking Total 6 | . 4 2 6 Tactical Retreats 2 | . . . 2 Traps | -11 -10 -10 -9 ------- Run | Jun Mat Min Mat Traps Triggered 5 | . 3 . 2 Indirectly . | . . . . Trap Hack Attempts . | . . . . Triggered . | . . . . Disarmed . | . . . . Reprogrammed 1 | . 1 . . Reused . | . . . . Traps Extracted . | . . . . Installed . | . . . . Triggered . | . . . . Machines | -11 -10 -10 -9 ---------- Run | Jun Mat Min Mat Machines Disabled 15 | . 9 2 4 Max in Single Turn 3 | . 3 1 1 Machines Repaired . | . . . . Machines Sabotaged . | . . . . Overloaded Fab Kills . | . . . . Hacking | -11 -10 -10 -9 --------- Run | Jun Mat Min Mat Machines Accessed 18 | . 7 1 10 Terminals 12 | . 6 . 6 Fabricators . | . . . . Repair Stations 3 | . 1 . 2 Recycling Units . | . . . . Scanalyzers 2 | . . . 2 Garrison Access . | . . . . Total Hacks 73 | . 28 1 44 Successful 45 | . 14 1 30 Failed 26 | . 13 . 13 Catastrophic 2 | . 2 . . Database Lockouts 2 | . 1 . 1 Manual 7 | . 4 . 3 Terminals 48 | . 23 . 25 Fabricators . | . . . . Repair Stations 12 | . 5 . 7 Recycling Units . | . . . . Scanalyzers 12 | . . . 12 Garrison Access . | . . . . Terminal Hacks 26 | . 12 1 13 Record 4 | . 2 . 2 Robot Analysis 2 | . . . 2 Prototype ID Bank 5 | . 2 . 3 Open Door 1 | . . 1 . Branch Access Points 1 | . . . 1 Alert Level 1 | . 1 . . Locate Traps 1 | . 1 . . Reprogram Traps 1 | . 1 . . Dispatch Records 2 | . . . 2 Transport Status 1 | . . . 1 Reinforcement Status 1 | . 1 . . Recall Reinforcements 1 | . 1 . . Hauler Manifests 1 | . 1 . . Registered Components 1 | . 1 . . Zone Layout 3 | . 1 . 2 Fabricator Hacks . | . . . . Repair Station Hacks 8 | . 2 . 6 Scan Component 3 | . . . 3 Repair 2 | . . . 2 Refit 3 | . 2 . 1 Recycling Unit Hacks . | . . . . Scanalyzer 11 | . . . 11 Insert Component 6 | . . . 6 Analyze 5 | . . . 5 Garrison Access Hacks . | . . . . Unauthorized Hacks . | . . . . Terminals . | . . . . Fabricators . | . . . . Repair Stations . | . . . . Recycling Units . | . . . . Scanalyzers . | . . . . Garrison Access . | . . . . Data Cores Recovered 1 | . . . 1 Used 1 | . . . 1 Hacking Detections 15 | . 5 . 10 Full Trace Events 4 | . 1 . 3 Feedback Events . | . . . . Feedback Blocked . | . . . . Robot Schematics Acquired . | . . . . Robots Built . | . . . . Authchips . | . . . . Time . | . . . . Total Robot Build Rating . | . . . . Part Schematics Acquired 5 | . . . 5 Parts Built . | . . . . Authchips . | . . . . Time . | . . . . Total Part Build Rating . | . . . . Parts Repaired 2 | . . . 2 Time 70 | . . . 70 Parts Recycled . | . . . . Recycled Matter . | . . . . Retrieved Matter . | . . . . Retrieved Components . | . . . . Parts Scanalyzed 5 | . . . 5 Part Schematics Acquired 5 | . . . 5 Parts Damaged . | . . . . Bothacking | -11 -10 -10 -9 ------------ Run | Jun Mat Min Mat Used RIF Installer . | . . . . Robots Hacked . | . . . . Non-combat . | . . . . Combat . | . . . . Robot Hacks Applied . | . . . . Relay Couplers Released . | . . . . Fabnet Peak Effective % . | . . . . Robots Rewired . | . . . . Allies Hacked . | . . . . Hacks Repelled . | . . . . Allies | -11 -10 -10 -9 -------- Run | Jun Mat Min Mat Total Allies 4 | . . 4 . Largest Group 4 | . . 4 3 Highest-Rated Group 71 | . . 71 40 Highest-Rated Ally 31 | . . 31 16 Total Orders . | . . . . Ally Attacks 20 | . . . 20 Total Damage 194 | . . . 194 Kills 3 | . . . 3 Allies Corrupted . | . . . . Allies Melted . | . . . . Intel | -11 -10 -10 -9 ------- Run | Jun Mat Min Mat Robot Analysis Total 2 | . . . 2 Derelict Logs Recovered 2 | . . 2 . Drone Launches . | . . . . Drone Recoveries . | . . . . Exploration | -11 -10 -10 -9 ------------- Run | Jun Mat Min Mat Turns Passed 3171 | 55 1244 422 1450 Spaces Moved 3305 | 46 1037 592 1630 Core 44 | 6 38 . . Treads . | . . . . Legs 123 | . 81 . 42 Wheels 95 | 40 55 . . Hover 1604 | . 492 406 706 Flight 1439 | . 371 186 882 Fastest Speed 31 | 50 37 37 31 Average Speed 57 | 76 77 51 46 Slowest Speed 320 | 95 200 60 320 Overloaded Moves . | . . . . Propulsion Burnouts . | . . . . Robots Hopped 9 | . . 1 8 Cave-ins Triggered 1 | . . 1 . Exploration Rate (%) 70 | 4 98 99 82 Regions Visited 3 Branch Regions 1 Pre-discovered Areas . | . . . . Known Exits Taken . | . . . . Unknown Exits Taken 3 | 1 1 1 . Scrap Searched 3 | . . 3 . Spaces Dug 37 | . 16 21 . Terrain Destroyed 477 | . 183 178 116 Melee . | . . . . Projectile 50 | . . . 50 AOE 427 | . 183 178 66 Terrain Rammed . | . . . . Walls Destroyed . | . . . . Machines Disabled . | . . . . Actions | -11 -10 -10 -9 --------- Run | Jun Mat Min Mat Total 4035 | 58 1249 687 2041 Wait 228 | . 13 78 137 Move 3284 | 45 1036 589 1614 Hop 9 | . . 1 8 Pick Up 35 | 2 16 2 15 Fast Attach 43 | 6 11 1 25 Attach 13 | 1 1 1 10 Detach 13 | . 4 1 8 Swap 15 | 1 7 1 6 Drop 50 | . 25 2 23 Fire 339 | 2 136 11 190 Melee 5 | . . . 5 Ram 1 | 1 . . . Kick . | . . . . Crush . | . . . . Escape Stasis . | . . . . Rewire . | . . . . Trap . | . . . . Miscellaneous . | . . . . Route ------- -11/Junkyard -10/Materials (discovered 5 exits: *Mat x3 / *Min x2) -10/Mines (discovered 2 exits: *Mat x2) -9/Materials (discovered 5 exits: [*Mat x2] / *Min x2 / *Sto) History --------- Turn | Location | Event 18 | -11/Junkyard | Discovered new exit (range 16) 56 | -11/Junkyard | Entered Materials 218 | -10/Materials | Discovered new exit (range 13) 308 | -10/Materials | Build established: Mutant 431 | -10/Materials | Discovered new exit (range 11) 599 | -10/Materials | Discovered new exit (range 16) 843 | -10/Materials | Discovered new exit (range 12) 1067 | -10/Materials | Central database locked down 1116 | -10/Materials | Discovered new exit (range 11) 1300 | -10/Materials | Entered Mines 1303 | -10/Mines | Received a Mining Laser from a helpful Derelict 1309 | -10/Mines | Learned 2 Materials zone layouts 1318 | -10/Mines | Assisted by bots powering up and referring to "LRC-V3" 1331 | -10/Mines | Met a Derelict bent on vengeance 1374 | -10/Mines | Discovered new exit (range 15) 1389 | -10/Mines | Core integrity fell below 50% 1513 | -10/Mines | Discovered new exit (range 7) 1567 | -10/Mines | Met a Derelict who couldn't figure out how to use a Trap Extractor 1654 | -10/Mines | Crushed by falling debris 1722 | -10/Mines | Entered Materials 1722 | -9/Materials | Accompanied by 4 allies 1722 | -9/Materials | Evolved 2 slots: Propulsion x2 1723 | -9/Materials | Identified exit to Storage 1734 | -9/Materials | Identified exit to Mines 2039 | -9/Materials | Central database locked down 2039 | -9/Materials | Discovered new exit (range 16) 2251 | -9/Materials | Repaired Imp. Hover Unit 2290 | -9/Materials | Repaired Assault Cannon 2641 | -9/Materials | Discovered new exit (range 5) 2745 | -9/Materials | Core integrity fell below 50% 2781 | -9/Materials | Lost 4 parts (1p1n1u1w) 2922 | -9/Materials | First assault squad dispatched 3041 | -9/Materials | Core integrity fell below 20% 3103 | -9/Materials | Lost 3 parts (1n1u1w) 3172 | -9/Materials | Destroyed by G-34 Mercenary with Small Laser Last Messages --------------- 03126_ Destroyed Wheel. 03126_ K-01 Serf destroyed. 03132_ G-34 Mercenary destroyed. 03136_ G-34 Mercenary knocked back. 03148_ G-34 Mercenary destroyed. 03151_ Acquired 16 matter. 03151_ Acquired 12 matter. 03152_ Acquired 22 matter. 03153_ Acquired 5 matter. 03157_ >> Machine Analyzer network decryption results: 03157_ Terminal x1 03159_ Connecting with Terminal... >>Prototypes Downloading prototype IDs... Prc. Beam Rifle Hvy. Ion Engine >>Layout(Zone) Retrieving Zone 8X layout... Downloaded map data. 03164_ Critical hit (Burn: +37). Map ----- +----------------------------------------------------+ | ????????# # % | | ????????# # [ %= | | ????????# # | | ????????# """T""" # ##+#######" | | ????????########### # ## | | ??????????# ## # ## | | ??????????# """ ## # """ ## | | ??????????# ""R" ## # """" ## | | ??????????# "" " ## # """"" ## | | ??????????# ## # """"" ## | | ??????????# # # """ ## | | ?????##########+## # ## | | ?????# ^ ^ ^ ^ / ## | | ######% ^ *^^ ##########? | | # #^^^ ^ ^ """ #?????????? | | # #"" %///= """ ############? | | # #" // """ ###% #? | | # #"" // %"""%%#"#! """ #? | | # " =*= = +%! """ #? | | # # [ !%%*!###! """ #? | | # # #######+#####% %! #? | | # ###g##### " #%%%""" #? | | # # ## # %""" #? | | #####;%! /] ## # %=""" #? | | ?????#% ] ## # [==* #? | | ?????# Y @ ## ####+#####? | | ????## "T" ## ##*]%]#???? | | ????#% ## ##"]%]##### | | ????########## + !]=# | | ?????????????############# % | | ??????????????????# ?#=%[# | | ??????????????????# ?# ##### | | ??????????????????# """ ## ##??? | | ???????############ """ # #??? | | ???????# ## """ # ! #### | | ???????# "" ## # *> / | | ???????# "T ## # [= ## | | ???????# "" ## # ## " | | ???????# """ ## ### #### " | | ???????# """ ## ??# #??# " | | ???????# """ ## ??# #??# | | ???????# ## ??# ###### | | ????????????#+########+#### ### ## | | ???????????# # | | ???????????# # """ | | ???????????# # """ | | ????????????############## # """ | | ????????????????????????## # | | ???#########????????????## ##### | | ??? ############### ##### | +----------------------------------------------------+ Best States ------------- Heat Dissipation 50 Energy Generation 14 Energy Capacity 160 Matter Stores 300 Matter Capacity 300 Sight Range 18 Terrain Scan Range 16 Terrain Scan Density 10 Armor Coverage 80 Evasion (%) 63 Targeting Accuracy 6 Offensive Hacking 10 Item Schematics ----------------- Lgt. Nuclear Core | -9/Materials | Scanalyzed Mni. Grenade Launcher | -9/Materials | Scanalyzed Hacking Suite | -9/Materials | Scanalyzed Assault Cannon | -9/Materials | Scanalyzed Machine Analyzer | -9/Materials | Scanalyzed Robot Schematics ------------------ None Fabricated ------------ Nothing Alien Tech Used ----------------- None Achievements -------------- Backstab Challenges ------------ None Game ------ Seed CloakParticleDiverter Manual? 0 Play Time 00:48:43 Cumulative 27.6 hours Start 2023.12.29 @ 17:34:46 End 2023.12.29 @ 18:19:54 Sessions 1 Manual Loads 0 Difficulty Rogue Special Mode None Game No. 16 Rogue 16 Adventurer 0 Explorer 0 Win Type - Total 0 Types 0/0/0/0/0/0/0/0/0 Lore% 44 Gallery% 36 Achievement% 32 Wizard Run 0 Options --------- ASCII 0 Keyboard 1 Movement Arrows Keybinds 0 Fullscreen 1 Font 12/Proggy Map View 83x54 Tactical HUD 1 Map Filters NONE Filters NONE Steam 0 RUN: ffd8a96c-4c6f-4e9d-87c6-b755e3ec1449